fUST/lending_fUST_20250804
["ID","MTS","AMOUNT","RATE_DAILY","PERIOD"]
[377287430,1754320248570,-460.0,0.00033972,2]
[377287431,1754320248580,-460.0,0.00033972,2]
[377287432,1754320248589,-460.0,0.00033972,2]
[377287433,1754320248599,-839.25,0.00033972,2]
[377287434,1754320248611,-959.24,0.00033972,2]
[377287435,1754320248621,-359.42791692,0.00033972,2]
[377287436,1754320248631,-460.0,0.00033972,2]
[377287437,1754320248640,-2110.54,0.00033972,2]
[377287438,1754320248653,-866.47,0.00033972,2]
[377287439,1754320248663,-460.0,0.00033972,2]
[377287440,1754320248673,-151.0,0.00033972,14]
[377287441,1754320248682,-151.0,0.00033972,14]
[377287442,1754320248692,-460.0,0.00033972,2]
[377287443,1754320248701,-151.0,0.00033972,14]
[377287444,1754320248711,-460.0,0.00033972,2]
[377287445,1754320248721,-460.0,0.00033972,2]
[377287446,1754320248731,-460.0,0.00033972,2]
[377287447,1754320248741,-460.0,0.00033972,2]
[377287448,1754320248750,-460.0,0.00033972,2]
[377287449,1754320248760,-460.0,0.00033972,2]
[377287450,1754320248769,-6299.05,0.00033972,2]
[377287451,1754320248778,-460.0,0.00033972,2]
[377287452,1754320248788,-382.81607924,0.00033972,2]
[377287453,1754320248797,-460.0,0.00033972,2]
[377287454,1754320248807,-460.0,0.00033972,2]
[377287455,1754320248816,-460.0,0.00033972,2]
[377287456,1754320248825,-527.04,0.00033972,2]
[377287457,1754320248835,-460.0,0.00033972,2]
[377287458,1754320248845,-460.0,0.00033972,2]
[377287459,1754320248855,-460.0,0.00033972,2]
[377287460,1754320248865,-460.0,0.00033972,2]
[377287461,1754320248874,-1035.18,0.00033972,2]
[377287462,1754320248884,-460.0,0.00033972,2]
[377287463,1754320248895,-767.32,0.00033972,2]
[377287464,1754320248904,-760.58,0.00033972,2]
[377287465,1754320248914,-6855.53,0.00033972,2]
[377287466,1754320248924,-494.35,0.00033972,2]
[377287467,1754320248934,-1581.22,0.00033972,2]
[377287468,1754320248944,-460.0,0.00033972,2]
[377287469,1754320248954,-523.03,0.00033972,2]
[377287470,1754320248964,-460.0,0.00033972,2]
[377287471,1754320248974,-460.0,0.00033972,2]
[377287472,1754320248983,-617.49,0.00033972,2]
[377287473,1754320248993,-460.0,0.00033972,2]
[377287474,1754320249003,-581.46,0.00033972,2]
[377287475,1754320249013,-948.56,0.00033972,2]
[377287476,1754320249023,-780.48,0.00033972,2]
[377287477,1754320249034,-496.13,0.00033972,2]
[377287478,1754320249049,-3804.14,0.00033972,2]
[377287479,1754320249059,-460.0,0.00033972,2]
[377287480,1754320249069,-688.25,0.00033972,2]
[377287481,1754320249079,-182.49,0.00033972,2]
[377287482,1754320249089,-460.0,0.00033972,2]
[377287483,1754320249099,-849.14,0.00033972,2]
[377287484,1754320249110,-584.82,0.00033972,2]
[377287485,1754320249148,-583.5,0.00033972,2]
[377287486,1754320249158,-460.0,0.00033972,2]
[377287487,1754320249168,-647.3,0.00033972,2]
[377287488,1754320249179,-574.27607608,0.00033972,2]
[377287489,1754320249189,-430.40735266,0.00033972,2]
[377287490,1754320249199,-460.0,0.00033972,2]
[377287491,1754320249210,-739.03,0.00033972,2]
[377287492,1754320249223,-460.0,0.00033972,2]
[377287493,1754320249234,-619.22,0.00033972,2]
[377287494,1754320249244,-717.18745193,0.00033972,2]
[377287495,1754320249265,-334.0493997,0.00033972,2]
[377287496,1754320249277,-1250.0000102,0.00033972,2]
[377287497,1754320249290,-500.0,0.00033972,2]
[377287498,1754320249302,-466.18313817,0.00033972,2]
[377287499,1754320249312,-537.06,0.00033972,2]
[377287500,1754320249321,-553.6,0.00033972,2]
[377287501,1754320249331,-225.90024233,0.00033972,2]
[377287502,1754320249985,-0.01464938,0.00031462,2]
[377287503,1754320250106,999.99,0.0003027,30]
[377287504,1754320250232,-49499.87444685,0.0003038,2]
[377287505,1754320250244,-500.0,0.00030759,2]
[377287506,1754320250258,-163.62569734,0.00031462,2]
[377287507,1754320250271,-163.64034672,0.00032148,2]
[377287508,1754320250284,-163.64034672,0.00032148,2]
[377287509,1754320250297,-163.64034672,0.00032501,2]
[377287510,1754320250309,-163.64034672,0.00032696,2]
[377287511,1754320250321,-163.64034672,0.0003278,2]
[377287512,1754320250333,-163.64034672,0.00032875,2]
[377287513,1754320250345,-460.0,0.00032876,2]
[377287514,1754320250357,-1002.56,0.00032876,2]
[377287515,1754320250369,-163.64034672,0.00032876,2]
[377287516,1754320250382,-418.85076153,0.0003315,2]
[377287517,1754320250395,-1002.56,0.0003315,2]
[377287518,1754320250407,-1002.56,0.00033424,2]
[377287519,1754320250419,-1002.56,0.00033698,2]
[377287520,1754320250431,-1473.03260427,0.00033886,2]
[377287521,1754320250444,-234.09975767,0.00033972,2]
[377287522,1754320250457,-460.0,0.00033972,2]
[377287523,1754320250470,-977.49,0.00033972,2]
[377287524,1754320250483,-460.0,0.00033972,2]
[377287525,1754320250495,-460.0,0.00033972,2]
[377287526,1754320250506,-460.0,0.00033972,2]
[377287527,1754320250517,-2718.21,0.00033972,2]
[377287528,1754320250528,-557.34,0.00033972,2]
[377287529,1754320250538,-460.0,0.00033972,2]
[377287530,1754320250547,-460.0,0.00033972,2]
[377287531,1754320250556,-1268.05,0.00033972,2]
[377287532,1754320250566,-460.0,0.00033972,2]
[377287533,1754320250576,-816.99,0.00033972,2]
[377287534,1754320250586,-460.0,0.00033972,2]
[377287535,1754320250596,-460.0,0.00033972,2]
[377287536,1754320250606,-460.0,0.00033972,2]
[377287537,1754320250615,-460.0,0.00033972,2]
[377287538,1754320250624,-460.0,0.00033972,2]
[377287539,1754320250634,-460.0,0.00033972,2]
[377287540,1754320250644,-644.51,0.00033972,2]
[377287541,1754320250653,-460.0,0.00033972,2]
[377287542,1754320250663,-621.34,0.00033972,2]
[377287543,1754320250673,-460.0,0.00033972,2]
[377287544,1754320250683,-510.34,0.00033972,2]
[377287545,1754320250692,-480.57,0.00033972,2]
[377287546,1754320250702,-2931.08,0.00033972,2]
[377287547,1754320250711,-757.98,0.00033972,2]
[377287548,1754320250721,-460.0,0.00033972,2]
[377287549,1754320250731,-460.0,0.00033972,2]
[377287550,1754320250740,-460.0,0.00033972,2]
[377287551,1754320250750,-2661.3,0.00033972,2]
[377287552,1754320250759,-858.24,0.00033972,2]
[377287553,1754320250768,-460.0,0.00033972,2]
[377287554,1754320250779,-484.17,0.00033972,2]
[377287555,1754320250788,-460.0,0.00033972,2]
[377287556,1754320250797,-5634.25,0.00033972,2]
[377287557,1754320250806,-1569.94,0.00033972,2]
[377287558,1754320250816,-1218.26,0.00033972,2]
[377287559,1754320250825,-6220.6,0.00033972,2]
[377287560,1754320250835,-984.94,0.00033972,2]
[377287561,1754320250844,-9007.28,0.00033972,2]
[377287562,1754320250996,-1002.56,0.00033972,2]
[377287563,1754320251071,-151.0,0.0003398,14]
[377287564,1754320251085,-3000.0,0.0003398,2]
[377287565,1754320251096,-2244.32,0.00034,7]
[377287566,1754320251106,-3797.9500042,0.00034,14]
[377287567,1754320251127,-33285.5199958,0.00034,14]
[377287568,1754320251136,-5641.44,0.00034,14]
[377287569,1754320251146,-343.05,0.00034035,60]
[377287570,1754320251156,-200.0,0.000341,37]
[377287571,1754320251166,-343.05,0.00034135,60]
[377287572,1754320251175,-1300.0,0.00034157,7]
[377287573,1754320251185,-153.0,0.00034164,30]
[377287574,1754320251194,-153.0,0.00034164,30]
[377287575,1754320251204,-153.0,0.00034164,30]
[377287576,1754320251215,-153.0,0.00034164,30]
[377287577,1754320251226,-153.0,0.00034164,30]
[377287578,1754320251236,-153.0,0.00034164,30]
[377287579,1754320251245,-153.0,0.00034164,30]
[377287580,1754320251255,-153.0,0.00034164,30]
[377287581,1754320251264,-153.0,0.00034164,30]
[377287582,1754320251274,-153.0,0.00034164,30]
[377287583,1754320251284,-153.0,0.00034164,30]
[377287584,1754320251295,-153.0,0.00034164,30]
[377287585,1754320251305,-153.0,0.00034164,30]
[377287586,1754320251314,-343.05,0.00034235,60]
[377287587,1754320251324,-151.0,0.00034236,14]
[377287588,1754320251334,-268.956,0.00034236,14]
[377287589,1754320251343,-200.0,0.0003424,120]
[377287590,1754320251353,-151.0,0.00034246,14]
[377287591,1754320251362,-151.0,0.00034246,14]
[377287592,1754320251371,-807.11999,0.00034246,14]
[377287593,1754320251380,-151.0,0.00034246,14]
[377287594,1754320251390,-232.843891,0.00034246,14]
[377287595,1754320251400,-186.496639,0.00034246,14]
[377287596,1754320251409,-186.496639,0.00034246,14]
[377287597,1754320251418,-151.0,0.00034246,14]
[377287598,1754320251428,-172.801002,0.00034246,14]
[377287599,1754320251438,-172.801002,0.00034246,14]
[377287600,1754320251447,-151.0,0.00034246,14]
[377287601,1754320251456,-151.0,0.00034246,14]
[377287602,1754320251471,-460.0,0.00034246,2]
[377287603,1754320251480,-335.8397389,0.00034246,2]
[377287604,1754320251490,-460.0,0.00034246,2]
[377287605,1754320251499,-700.92,0.00034246,2]
[377287606,1754320251516,-461.21892501,0.00034246,2]
[377287607,1754320251525,-460.0,0.00034246,2]
[377287608,1754320251535,-460.0,0.00034246,2]
[377287609,1754320251544,-2764.52,0.00034246,2]
[377287610,1754320251554,-460.0,0.00034246,2]
[377287611,1754320251563,-460.0,0.00034246,2]
[377287612,1754320251572,-460.0,0.00034246,2]
[377287613,1754320251582,-686.95,0.00034246,2]
[377287614,1754320251591,-523.56,0.00034246,2]
[377287615,1754320251600,-460.0,0.00034246,2]
[377287616,1754320251610,-460.0,0.00034246,2]
[377287617,1754320251619,-460.0,0.00034246,2]
[377287618,1754320251628,-460.0,0.00034246,2]
[377287619,1754320251638,-460.0,0.00034246,2]
[377287620,1754320251648,-460.0,0.00034246,2]
[377287621,1754320251658,-460.0,0.00034246,2]
[377287622,1754320251667,-460.0,0.00034246,2]
[377287623,1754320251677,-670.38,0.00034246,2]
[377287624,1754320251686,-483.92,0.00034246,2]
[377287625,1754320251695,-586.38,0.00034246,2]
[377287626,1754320251704,-460.0,0.00034246,2]
[377287627,1754320251714,-1441.46,0.00034246,2]
[377287628,1754320251724,-460.0,0.00034246,2]
[377287629,1754320251733,-460.0,0.00034246,2]
[377287630,1754320251743,-556.6,0.00034246,2]
[377287631,1754320251752,-460.0,0.00034246,2]
[377287632,1754320251762,-151.0,0.00034246,14]
[377287633,1754320251771,-606.14914586,0.00034246,2]
[377287634,1754320251781,-460.0,0.00034246,2]
[377287635,1754320251790,-839.25,0.00034246,2]
[377287636,1754320251800,-959.24,0.00034246,2]
[377287637,1754320251809,-460.0,0.00034246,2]
[377287638,1754320251819,-2110.54,0.00034246,2]
[377287639,1754320251828,-866.47,0.00034246,2]
[377287640,1754320251839,-460.0,0.00034246,2]
[377287641,1754320251848,-460.0,0.00034246,2]
[377287642,1754320251857,-151.0,0.00034246,14]
[377287643,1754320251866,-460.0,0.00034246,2]
[377287644,1754320251875,-460.0,0.00034246,2]
[377287645,1754320251885,-219.532466,0.00034246,14]
[377287646,1754320251894,-219.532466,0.00034246,14]
[377287647,1754320251904,-460.0,0.00034246,2]
[377287648,1754320251913,-460.0,0.00034246,2]
[377287649,1754320251923,-460.0,0.00034246,2]
[377287650,1754320251932,-460.0,0.00034246,2]
[377287651,1754320251942,-6299.05,0.00034246,2]
[377287652,1754320251951,-460.0,0.00034246,2]
[377287653,1754320251960,-151.0,0.00034246,14]
[377287654,1754320251970,-460.0,0.00034246,2]
[377287655,1754320251979,-460.0,0.00034246,2]
[377287656,1754320251988,-460.0,0.00034246,2]
[377287657,1754320251999,-527.04,0.00034246,2]
[377287658,1754320252008,-460.0,0.00034246,2]
[377287659,1754320252018,-460.0,0.00034246,2]
[377287660,1754320252028,-460.0,0.00034246,2]
[377287661,1754320252037,-460.0,0.00034246,2]
[377287662,1754320252046,-638.82159943,0.00034246,2]
[377287663,1754320252059,-396.35840057,0.00034246,2]
[377287664,1754320252068,-291.28,0.00034246,2]
[377287665,1754320252078,-767.32,0.00034246,2]
[377287666,1754320252087,-760.58,0.00034246,2]
[377287667,1754320252097,-2025.35513703,0.00034246,2]
[377287668,1754320252208,-151.0,0.0003315,14]
[377287669,1754320252221,-151.0,0.00033698,14]
[377287670,1754320252231,-4830.17486297,0.00034246,2]
[377287671,1754320252240,-494.35,0.00034246,2]
[377287672,1754320252250,-1581.22,0.00034246,2]
[377287673,1754320252260,-460.0,0.00034246,2]
[377287674,1754320252270,-523.03,0.00034246,2]
[377287675,1754320252279,-460.0,0.00034246,2]
[377287676,1754320252288,-460.0,0.00034246,2]
[377287677,1754320252298,-617.49,0.00034246,2]
[377287678,1754320252309,-460.0,0.00034246,2]
[377287679,1754320252318,-581.46,0.00034246,2]
[377287680,1754320252327,-948.56,0.00034246,2]
[377287681,1754320252336,-780.48,0.00034246,2]
[377287682,1754320252346,-496.13,0.00034246,2]
[377287683,1754320252355,-3804.14,0.00034246,2]
[377287684,1754320252364,-460.0,0.00034246,2]
[377287685,1754320252374,-688.25,0.00034246,2]
[377287686,1754320252384,-460.0,0.00034246,2]
[377287687,1754320252394,-849.14,0.00034246,2]
[377287688,1754320252405,-584.82,0.00034246,2]
[377287689,1754320252414,-583.5,0.00034246,2]
[377287690,1754320252423,-460.0,0.00034246,2]
[377287691,1754320252433,-647.3,0.00034246,2]
[377287692,1754320252444,-460.0,0.00034246,2]
[377287693,1754320252455,-739.03,0.00034246,2]
[377287694,1754320252465,-460.0,0.00034246,2]
[377287695,1754320252474,-619.22,0.00034246,2]
[377287696,1754320252483,-3267.42,0.00034246,2]
[377287697,1754320252493,-537.06,0.00034246,2]
[377287698,1754320252503,-553.6,0.00034246,2]
[377287699,1754320252512,-460.0,0.00034246,2]
[377287700,1754320252521,-460.0,0.00034246,2]
[377287701,1754320252531,-977.49,0.00034246,2]
[377287702,1754320252540,-460.0,0.00034246,2]
[377287703,1754320252550,-460.0,0.00034246,2]
[377287704,1754320252559,-560.85900937,0.00034246,2]
[377287705,1754320252568,-2718.21,0.00034246,2]
[377287706,1754320252578,-557.34,0.00034246,2]
[377287707,1754320252588,-460.0,0.00034246,2]
[377287708,1754320252597,-460.0,0.00034246,2]
[377287709,1754320252606,-1268.05,0.00034246,2]
[377287710,1754320252615,-460.0,0.00034246,2]
[377287711,1754320252624,-816.99,0.00034246,2]
[377287712,1754320252634,-444.98653771,0.00034246,2]
[377287713,1754320252643,-460.0,0.00034246,2]
[377287714,1754320252653,-460.0,0.00034246,2]
[377287715,1754320252663,-460.0,0.00034246,2]
[377287716,1754320252672,-460.0,0.00034246,2]
[377287717,1754320252681,-644.51,0.00034246,2]
[377287718,1754320252690,-460.0,0.00034246,2]
[377287719,1754320252699,-621.34,0.00034246,2]
[377287720,1754320252709,-460.0,0.00034246,2]
[377287721,1754320252718,-510.34,0.00034246,2]
[377287722,1754320252727,-480.57,0.00034246,2]
[377287723,1754320252736,-2931.08,0.00034246,2]
[377287724,1754320252746,-757.98,0.00034246,2]
[377287725,1754320252756,-4476.64,0.00034246,120]
[377287726,1754320252765,-460.0,0.00034246,2]
[377287727,1754320252774,-460.0,0.00034246,2]
[377287728,1754320252784,-460.0,0.00034246,2]
[377287729,1754320252794,-2661.3,0.00034246,2]
[377287730,1754320252803,-858.24,0.00034246,2]
[377287731,1754320252813,-460.0,0.00034246,2]
[377287732,1754320252822,-484.17,0.00034246,2]
[377287733,1754320252832,-460.0,0.00034246,2]
[377287734,1754320252841,-5634.25,0.00034246,2]
[377287735,1754320252850,-1569.94,0.00034246,2]
[377287736,1754320252860,-1218.26,0.00034246,2]
[377287737,1754320252869,-984.94,0.00034246,2]
[377287738,1754320252878,-6220.6,0.00034246,2]
[377287739,1754320252888,-9007.28,0.00034246,2]
[377287740,1754320252897,-1002.56,0.00034246,2]
[377287741,1754320252906,-151.0,0.00034246,14]
[377287742,1754320252916,-1500.0,0.00034268,5]
[377287743,1754320252925,-1500.0,0.00034268,5]
[377287744,1754320252934,-1500.0,0.00034268,5]
[377287745,1754320252943,-504.34021033,0.00034288,5]
[377287746,1754320252953,-151.0,0.000343,14]
[377287747,1754320252963,-172.801002,0.000343,14]
[377287748,1754320252972,-172.801002,0.000343,14]
[377287749,1754320252982,-200.0,0.00034322,120]
[377287750,1754320252991,-343.05,0.00034335,60]
[377287751,1754320253000,-660.0,0.0003434,2]
[377287752,1754320253010,-184.190767,0.00034416,14]
[377287753,1754320253019,-184.190767,0.00034416,14]
[377287754,1754320253028,-151.0,0.00034416,14]
[377287755,1754320253037,-151.0,0.00034416,14]
[377287756,1754320253047,-390.23,0.00034426,2]
[377287757,1754320253056,-343.05,0.00034435,60]
[377287758,1754320253066,-600.0,0.00034516,5]
[377287759,1754320253076,-800.0,0.00034516,5]
[377287760,1754320253086,-2000.0,0.00034516,2]
[377287761,1754320253095,-151.0,0.0003452,14]
[377287762,1754320253105,-153.701308,0.0003452,14]
[377287763,1754320253114,-807.11999,0.0003452,14]
[377287764,1754320253124,-807.11999,0.0003452,14]
[377287765,1754320253133,-186.496639,0.0003452,14]
[377287766,1754320253142,-186.496639,0.0003452,14]
[377287767,1754320253153,-151.0,0.0003452,14]
[377287768,1754320253163,-172.801002,0.0003452,14]
[377287769,1754320253172,-172.801003,0.0003452,14]
[377287770,1754320253182,-151.0,0.0003452,14]
[377287771,1754320253191,-151.0,0.0003452,14]
[377287772,1754320253201,-460.0,0.0003452,2]
[377287773,1754320253211,-460.0,0.0003452,2]
[377287774,1754320253223,-700.92,0.0003452,2]
[377287775,1754320253233,-460.0,0.0003452,2]
[377287776,1754320253242,-460.0,0.0003452,2]
[377287777,1754320253252,-151.0,0.0003452,14]
[377287778,1754320253263,-2764.52,0.0003452,2]
[377287779,1754320253273,-460.0,0.0003452,2]
[377287780,1754320253283,-460.0,0.0003452,2]
[377287781,1754320253293,-460.0,0.0003452,2]
[377287782,1754320253302,-686.95,0.0003452,2]
[377287783,1754320253312,-523.56,0.0003452,2]
[377287784,1754320253321,-460.0,0.0003452,2]
[377287785,1754320253330,-460.0,0.0003452,2]
[377287786,1754320253340,-460.0,0.0003452,2]
[377287787,1754320253349,-257.54715775,0.0003452,2]
[377287788,1754320253358,-460.0,0.0003452,2]
[377287789,1754320253367,-422.55070008,0.0003452,2]
[377287790,1754320253377,-460.0,0.0003452,2]
[377287791,1754320253386,-460.0,0.0003452,2]
[377287792,1754320253395,-670.38,0.0003452,2]
[377287793,1754320253407,-586.38,0.0003452,2]
[377287794,1754320253416,-483.92,0.0003452,2]
[377287795,1754320253426,-460.0,0.0003452,2]
[377287796,1754320253435,-1441.46,0.0003452,2]
[377287797,1754320253445,-460.0,0.0003452,2]
[377287798,1754320253455,-151.0,0.0003452,14]
[377287799,1754320253464,-460.0,0.0003452,2]
[377287800,1754320253473,-556.6,0.0003452,2]
[377287801,1754320253483,-151.0,0.0003452,14]
[377287802,1754320253493,-460.0,0.0003452,2]
[377287803,1754320253502,-460.0,0.0003452,2]
[377287804,1754320253511,-839.25,0.0003452,2]
[377287805,1754320253521,-959.24,0.0003452,2]
[377287806,1754320253530,-460.0,0.0003452,2]
[377287807,1754320253540,-2110.54,0.0003452,2]
[377287808,1754320253549,-866.47,0.0003452,2]
[377287809,1754320253559,-460.0,0.0003452,2]
[377287810,1754320253569,-151.0,0.0003452,14]
[377287811,1754320253578,-151.0,0.0003452,14]
[377287812,1754320253587,-460.0,0.0003452,2]
[377287813,1754320253597,-460.0,0.0003452,2]
[377287814,1754320253606,-460.0,0.0003452,2]
[377287815,1754320253616,-460.0,0.0003452,2]
[377287816,1754320253625,-460.0,0.0003452,2]
[377287817,1754320253634,-460.0,0.0003452,2]
[377287818,1754320253644,-460.0,0.0003452,2]
[377287819,1754320253655,-6299.05,0.0003452,2]
[377287820,1754320253664,-460.0,0.0003452,2]
[377287821,1754320253673,-460.0,0.0003452,2]
[377287822,1754320253682,-460.0,0.0003452,2]
[377287823,1754320253692,-552.38977938,0.0003452,2]
[377287824,1754320253701,-527.04,0.0003452,2]
[377287825,1754320253710,-460.0,0.0003452,2]
[377287826,1754320253720,-460.0,0.0003452,2]
[377287827,1754320253730,-533.42345469,0.0003452,2]
[377287828,1754320253739,-298.59030879,0.0003452,2]
[377287829,1754320253748,-1035.18,0.0003452,2]
[377287830,1754320253757,-767.32,0.0003452,2]
[377287831,1754320253766,-760.58,0.0003452,2]
[377287832,1754320253775,-6855.53,0.0003452,2]
[377287833,1754320253784,-1581.22,0.0003452,2]
[377287834,1754320253793,-494.35,0.0003452,2]
[377287835,1754320253803,-460.0,0.0003452,2]
[377287836,1754320253812,-523.03,0.0003452,2]
[377287837,1754320253822,-460.0,0.0003452,2]
[377287838,1754320253831,-460.0,0.0003452,2]
[377287839,1754320253840,-617.49,0.0003452,2]
[377287840,1754320253848,-460.0,0.0003452,2]
[377287841,1754320253857,-581.46,0.0003452,2]
[377287842,1754320253867,-948.56,0.0003452,2]
[377287843,1754320253875,-780.48,0.0003452,2]
[377287844,1754320253884,-496.13,0.0003452,2]
[377287845,1754320253893,-3804.14,0.0003452,2]
[377287846,1754320253903,-460.0,0.0003452,2]
[377287847,1754320253912,-688.25,0.0003452,2]
[377287848,1754320253921,-460.0,0.0003452,2]
[377287849,1754320253930,-849.14,0.0003452,2]
[377287850,1754320253940,-584.82,0.0003452,2]
[377287851,1754320253951,-583.5,0.0003452,2]
[377287852,1754320253961,-460.0,0.0003452,2]
[377287853,1754320253970,-647.3,0.0003452,2]
[377287854,1754320253980,-460.0,0.0003452,2]
[377287855,1754320253990,-739.03,0.0003452,2]
[377287856,1754320254000,-460.0,0.0003452,2]
[377287857,1754320254010,-619.22,0.0003452,2]
[377287858,1754320254019,-3267.42,0.0003452,2]
[377287859,1754320254029,-537.06,0.0003452,2]
[377287860,1754320254038,-553.6,0.0003452,2]
[377287861,1754320254048,-460.0,0.0003452,2]
[377287862,1754320254058,-460.0,0.0003452,2]
[377287863,1754320254067,-977.49,0.0003452,2]
[377287864,1754320254077,-460.0,0.0003452,2]
[377287865,1754320254087,-460.0,0.0003452,2]
[377287866,1754320254096,-2718.21,0.0003452,2]
[377287867,1754320254106,-557.34,0.0003452,2]
[377287868,1754320254115,-460.0,0.0003452,2]
[377287869,1754320254125,-460.0,0.0003452,2]
[377287870,1754320254135,-1268.05,0.0003452,2]
[377287871,1754320254144,-460.0,0.0003452,2]
[377287872,1754320254154,-816.99,0.0003452,2]
[377287873,1754320254164,-460.0,0.0003452,2]
[377287874,1754320254173,-460.0,0.0003452,2]
[377287875,1754320254183,-460.0,0.0003452,2]
[377287876,1754320254192,-460.0,0.0003452,2]
[377287877,1754320254201,-644.51,0.0003452,2]
[377287878,1754320254211,-460.0,0.0003452,2]
[377287879,1754320254225,-621.34,0.0003452,2]
[377287880,1754320254236,-460.0,0.0003452,2]
[377287881,1754320254245,-510.34,0.0003452,2]
[377287882,1754320254255,-480.57,0.0003452,2]
[377287883,1754320254377,-2931.08,0.0003452,2]
[377287884,1754320254391,-757.98,0.0003452,2]
[377287885,1754320254402,-460.0,0.0003452,2]
[377287886,1754320254412,-460.0,0.0003452,2]
[377287887,1754320254421,-460.0,0.0003452,2]
[377287888,1754320254430,-2661.3,0.0003452,2]
[377287889,1754320254440,-858.24,0.0003452,2]
[377287890,1754320254449,-460.0,0.0003452,2]
[377287891,1754320254458,-484.17,0.0003452,2]
[377287892,1754320254467,-460.0,0.0003452,2]
[377287893,1754320254477,-5634.25,0.0003452,2]
[377287894,1754320254486,-1569.94,0.0003452,2]
[377287895,1754320254496,-1218.26,0.0003452,2]
[377287896,1754320254505,-984.94,0.0003452,2]
[377287897,1754320254516,-6220.6,0.0003452,2]
[377287898,1754320254526,-1002.56,0.0003452,2]
[377287899,1754320254536,-9007.28,0.0003452,2]
[377287900,1754320254545,-343.05,0.00034535,60]
[377287901,1754320254555,-343.05,0.00034635,60]
[377287902,1754320254565,-250.0,0.00034639,2]
[377287903,1754320254575,-204.715,0.00034639,2]
[377287904,1754320254584,-248.658,0.00034694,2]
[377287905,1754320254594,-218.167,0.00034694,2]
[377287906,1754320254603,-250.0,0.00034694,2]
[377287907,1754320254613,-150.0,0.00034694,2]
[377287908,1754320254623,-151.225,0.00034694,2]
[377287909,1754320254632,-6765.17048449,0.00034694,2]
[377287910,1754320254642,-343.05,0.00034735,60]
[377287911,1754320254652,-151.0,0.00034794,14]
[377287912,1754320254662,-155.431919,0.00034794,14]
[377287913,1754320254672,-151.0,0.00034794,14]
[377287914,1754320254681,-807.11999,0.00034794,14]
[377287915,1754320254690,-807.11999,0.00034794,14]
[377287916,1754320254700,-151.0,0.00034794,14]
[377287917,1754320254710,-151.0,0.00034794,14]
[377287918,1754320254720,-151.0,0.00034794,14]
[377287919,1754320254730,-259.809258,0.00034794,14]
[377287920,1754320254739,-259.809258,0.00034794,14]
[377287921,1754320254749,-151.0,0.00034794,14]
[377287922,1754320254759,-151.0,0.00034794,14]
[377287923,1754320254768,-460.0,0.00034794,2]
[377287924,1754320254778,-184.190767,0.00034794,14]
[377287925,1754320254788,-184.190767,0.00034794,14]
[377287926,1754320254798,-460.0,0.00034794,2]
[377287927,1754320254809,-700.92,0.00034794,2]
[377287928,1754320254819,-460.0,0.00034794,2]
[377287929,1754320254828,-460.0,0.00034794,2]